bitfinex-derivatives/quotes_ETHF0:USTF0_20230106
["timestamp","ask_amount","ask_price","bid_price","bid_amount"]
[1672973355249,5.7078,1251.7,1251.6,3.69359213]
[1672973355466,5.7078,1251.7,1251.6,2.5]
[1672973355784,5.7078,1251.7,1251.5,2.98823959]
[1672973357675,2.5,1251.7,1251.5,2.98823959]
[1672973357882,3.2078,1251.6,1251.5,2.98823959]
[1672973358929,2.5,1251.7,1251.5,2.98823959]
[1672973359141,3.2078,1251.6,1251.5,2.98823959]
[1672973361138,2.5,1251.7,1251.5,2.98823959]
[1672973361664,3.2078,1251.6,1251.5,2.98823959]
[1672973362082,2.5,1251.7,1251.5,2.98823959]
[1672973362296,3.2078,1251.6,1251.5,2.98823959]
[1672973362822,3.2078,1251.6,1251.5,2.98796322]
[1672973363026,3.2078,1251.6,1251.5,1.79464746]
[1672973364716,2.5,1251.7,1251.5,1.79464746]
[1672973364915,2.5,1251.7,1251.6,1.19326803]
[1672973365337,5.7078,1251.7,1251.6,1.19326803]
[1672973365758,5.7078,1251.7,1251.6,3.69326803]
[1672973366177,5.7078,1251.7,1251.6,2.98791549]
[1672973366610,5.7078,1251.7,1251.6,1.19326803]
[1672973367131,5.7078,1251.7,1251.6,3.69326803]
[1672973367769,5.7078,1251.7,1251.6,5.48791549]
[1672973367981,5.7078,1251.7,1251.6,3.69326803]
[1672973368708,5.7078,1251.7,1251.6,1.19326803]
[1672973369239,5.7078,1251.7,1251.6,3.69326803]
[1672973369757,3.2078,1251.7,1251.6,3.69326803]
[1672973370185,5.7078,1251.7,1251.6,3.69326803]
[1672973370710,5.7078,1251.7,1251.6,5.48791549]
[1672973373335,5.7078,1251.7,1251.6,2.98791549]
[1672973373861,2.5,1251.7,1251.6,2.98791549]
[1672973374076,3.2078,1251.7,1251.6,2.98791549]
[1672973374804,2.5,1251.7,1251.6,2.98791549]
[1672973375120,5.7078,1251.7,1251.6,2.98791549]
[1672973375437,2.5,1251.7,1251.6,2.98791549]
[1672973375649,5.7078,1251.7,1251.6,2.98791549]
[1672973376807,5.7078,1251.7,1251.6,1.79464746]
[1672973377644,2.5,1251.7,1251.6,1.79464746]
[1672973377851,5.7078,1251.7,1251.6,1.79464746]
[1672973378915,5.7078,1251.7,1251.6,1.79102992]
[1672973379546,2.5,1251.7,1251.6,1.79102992]
[1672973379755,5.7078,1251.7,1251.6,1.79102992]
[1672973380068,2.5,1251.7,1251.6,1.79102992]
[1672973380284,3.2078,1251.7,1251.6,1.79102992]
[1672973380595,5.7078,1251.7,1251.6,1.79102992]
[1672973383229,5.7078,1251.7,1251.6,2.98448765]
[1672973383961,5.7078,1251.7,1251.6,1.79102992]
[1672973384275,5.7078,1251.7,1251.6,2.98446163]
[1672973384592,2.5,1251.7,1251.6,2.98446163]
[1672973385010,5.7078,1251.7,1251.6,2.98446163]
[1672973385642,3.2078,1251.7,1251.6,2.98446163]
[1672973386062,3.2078,1251.7,1251.6,1.79102992]
[1672973386900,2.5,1251.7,1251.6,1.79102992]
[1672973387112,5.7078,1251.7,1251.6,1.79102992]
[1672973388583,5.7078,1251.7,1251.6,2.98443074]
[1672973389636,2.5,1251.7,1251.6,2.98443074]
[1672973390168,5.7078,1251.7,1251.6,2.98443074]
[1672973393211,3.2078,1251.7,1251.6,1.79102992]
[1672973393421,3.2078,1251.7,1251.6,4.29102992]
[1672973393838,3.2078,1251.7,1251.6,6.68523791]
[1672973394261,3.2078,1251.7,1251.6,4.89420799]
[1672973394470,3.2078,1251.7,1251.6,6.31035691]
[1672973394892,3.2078,1251.8,1251.6,6.31035691]
[1672973395095,3.2078,1251.8,1251.7,1.1932547]
[1672973395301,3.2078,1251.8,1251.7,2.5]
[1672973396680,3.2078,1251.8,1251.7,3.69188886]
[1672973398997,2.49477982,1251.9,1251.7,3.69188886]
[1672973399196,5.70257982,1251.9,1251.7,3.69188886]
[1672973401733,2.49477982,1251.9,1251.7,3.69188886]
[1672973401944,5.70257982,1251.9,1251.7,3.69188886]
[1672973404469,3.2078,1251.9,1251.7,3.69188886]
[1672973404674,5.7078,1251.9,1251.7,3.69188886]
[1672973404987,3.2078,1251.9,1251.7,3.69188886]
[1672973405520,5.7078,1251.9,1251.7,3.69188886]
[1672973406042,2.5,1251.9,1251.7,3.69188886]
[1672973406253,3.2078,1251.8,1251.7,3.69188886]
[1672973407928,3.2078,1251.8,1251.7,2.5]
[1672973408665,5.7078,1251.9,1251.7,2.5]
[1672973408986,2.5,1251.9,1251.8,1.19182041]
[1672973409186,5.7078,1251.9,1251.8,1.19182041]
[1672973409609,2.5,1251.9,1251.8,1.19182041]
[1672973409826,5.7078,1251.9,1251.8,1.19182041]
[1672973411402,5.7078,1251.9,1251.7,3.69182041]
[1672973411824,3.2078,1251.8,1251.7,3.69182041]
[1672973412027,2.5,1251.9,1251.7,3.69182041]
[1672973412571,3.2078,1251.8,1251.7,3.69182041]
[1672973419818,3.2078,1251.8,1251.7,2.5]
[1672973421079,3.2078,1251.8,1251.7,3.69271481]
[1672973421712,2.5,1251.9,1251.7,3.69271481]
[1672973421912,5.7078,1251.9,1251.7,3.69271481]
[1672973422650,2.5,1251.9,1251.7,3.69271481]
[1672973422864,5.7078,1251.9,1251.7,3.69271481]
[1672973424440,2.5,1251.9,1251.7,3.69271481]
[1672973424650,5.7078,1251.9,1251.7,3.69271481]
[1672973425281,5.7078,1251.9,1251.8,1.19271481]
[1672973425484,2.5,1251.9,1251.8,1.19271481]
[1672973425806,9.30347651,1251.9,1251.7,3.69271481]
[1672973427900,6.09567651,1251.9,1251.7,3.69271481]
[1672973428212,3.2078,1251.8,1251.7,3.69271481]
[1672973429789,6.09567651,1251.9,1251.7,3.69271481]
[1672973429999,3.2078,1251.8,1251.7,3.69271481]
[1672973430842,3.2078,1251.8,1251.7,1.19271481]
[1672973431268,3.2078,1251.8,1251.6,3.69271481]
[1672973431479,6.80347651,1251.8,1251.6,1.19271481]
[1672973431682,2.5,1251.7,1251.6,1.19271481]
[1672973433055,5.7078,1251.7,1251.6,1.19271481]
[1672973433472,2.5,1251.7,1251.6,1.19271481]
[1672973433686,5.7078,1251.7,1251.6,1.19271481]
[1672973435049,2.5,1251.7,1251.6,1.19271481]
[1672973435366,5.7078,1251.7,1251.6,1.19271481]
[1672973435579,2.5,1251.7,1251.6,1.19271481]
[1672973435786,5.7078,1251.7,1251.6,1.19271481]
[1672973437046,2.5,1251.7,1251.6,1.19271481]
[1672973437256,5.7078,1251.7,1251.6,1.19271481]
[1672973439673,2.5,1251.7,1251.6,1.19271481]
[1672973439991,5.7078,1251.7,1251.6,1.19271481]
[1672973443454,2.5,1251.7,1251.6,1.19271481]
[1672973443663,5.7078,1251.7,1251.6,1.19271481]
[1672973443985,2.5,1251.7,1251.6,1.19271481]
[1672973444191,5.7078,1251.7,1251.6,1.19271481]
[1672973444825,2.5,1251.7,1251.6,1.19271481]
[1672973445035,3.2078,1251.7,1251.6,1.19271481]
[1672973445246,5.7078,1251.7,1251.6,1.19271481]
[1672973445562,2.5,1251.7,1251.6,1.19271481]
[1672973445771,5.7078,1251.7,1251.6,1.19271481]
[1672973446188,5.7078,1251.7,1251.6,2.98135798]
[1672973446505,5.7078,1251.7,1251.6,1.19271481]
[1672973446718,5.7078,1251.7,1251.6,2.98135798]
[1672973447031,5.7078,1251.7,1251.6,1.19271481]
[1672973447979,3.2078,1251.7,1251.6,1.19271481]
[1672973448188,3.2078,1251.7,1251.6,2.98135798]
[1672973450184,14.09367651,1251.9,1251.6,2.98135798]
[1672973450396,3.2078,1251.7,1251.6,2.98135798]
[1672973450594,14.09367651,1251.9,1251.6,2.98135798]
[1672973450807,3.2078,1251.7,1251.6,2.98135798]
[1672973451016,14.09367651,1251.9,1251.6,2.98135798]
[1672973451549,3.2078,1251.7,1251.6,2.98135798]
[1672973452707,14.09367651,1251.9,1251.6,2.98135798]
[1672973453232,3.2078,1251.7,1251.6,2.98135798]
[1672973453752,14.09367651,1251.9,1251.6,2.98135798]
[1672973453959,3.2078,1251.7,1251.6,2.98135798]
[1672973455127,3.2078,1251.7,1251.6,1.19271481]
[1672973455335,5.7078,1251.7,1251.6,2.98135798]
[1672973456491,2.5,1251.7,1251.6,2.98135798]
[1672973456694,5.7078,1251.7,1251.6,2.98135798]
[1672973456905,3.2078,1251.7,1251.6,2.98135798]
[1672973457962,3.2078,1251.7,1251.6,1.78864317]
[1672973458592,14.09367651,1251.9,1251.6,1.78864317]
[1672973458802,3.2078,1251.7,1251.6,2.98066638]
[1672973459325,3.2078,1251.7,1251.6,1.78864317]
[1672973459537,14.09367651,1251.9,1251.6,1.78864317]
[1672973459747,14.09367651,1251.9,1251.7,1.19211678]
[1672973459959,3.2078,1251.8,1251.7,3.69211678]
[1672973460691,14.09367651,1251.9,1251.7,3.69211678]
[1672973460902,3.2078,1251.8,1251.7,3.69211678]
[1672973461330,3.2078,1251.8,1251.7,1.19211678]
[1672973461858,14.09367651,1251.9,1251.7,1.19211678]
[1672973462068,3.2078,1251.8,1251.7,1.19211678]
[1672973464379,14.09367651,1251.9,1251.7,1.19211678]
[1672973464692,3.2078,1251.8,1251.7,1.19211678]
[1672973466795,14.09367651,1251.9,1251.7,1.19211678]
[1672973467113,3.2078,1251.8,1251.7,1.19211678]
[1672973469844,3.2078,1251.8,1251.7,2.98075995]
[1672973470367,3.2078,1251.8,1251.7,1.19211678]
[1672973474361,3.2078,1251.8,1251.7,2.98075995]
[1672973476145,3.2078,1251.8,1251.7,1.19211678]
[1672973476562,14.09367651,1251.9,1251.7,1.19211678]
[1672973476882,14.09367651,1251.9,1251.7,2.98075995]
[1672973476883,3.2078,1251.8,1251.7,2.98075995]
[1672973477834,14.09367651,1251.9,1251.7,2.98075995]
[1672973478142,3.2078,1251.8,1251.7,2.98075995]
[1672973479612,14.09367651,1251.9,1251.7,2.98075995]
[1672973480034,3.2078,1251.8,1251.7,2.98075995]
[1672973480770,14.09367651,1251.9,1251.7,2.98075995]
[1672973480981,3.2078,1251.8,1251.7,2.98075995]
[1672973482976,14.09367651,1251.9,1251.7,2.98075995]
[1672973483189,3.2078,1251.8,1251.7,2.98075995]
[1672973483503,3.2078,1251.8,1251.7,1.78864317]
[1672973483815,3.2078,1251.8,1251.7,2.98040754]
[1672973484762,14.09367651,1251.9,1251.7,2.98040754]
[1672973484974,3.2078,1251.8,1251.7,2.98040754]
[1672973485285,14.09367651,1251.9,1251.7,2.98040754]
[1672973485499,3.2078,1251.8,1251.7,2.98040754]
[1672973485814,14.09367651,1251.9,1251.7,2.98040754]
[1672973486026,3.2078,1251.8,1251.7,2.98040754]
[1672973488654,14.09367651,1251.9,1251.7,2.98040754]
[1672973488971,3.2078,1251.8,1251.7,1.78864317]
[1672973489387,3.2078,1251.8,1251.7,2.98071574]
[1672973490230,3.2078,1251.8,1251.7,1.78864317]
[1672973490545,3.2078,1251.8,1251.7,2.98075377]
[1672973490756,3.2078,1251.8,1251.7,2.98071506]
[1672973491072,3.2078,1251.8,1251.7,1.78864317]
[1672973493808,3.2078,1251.8,1251.7,2.98057602]
[1672973494533,14.09367651,1251.9,1251.7,2.98057602]
[1672973494743,3.2078,1251.8,1251.7,2.98057602]
[1672973495277,3.2078,1251.8,1251.7,1.78864317]
[1672973495602,14.09367651,1251.9,1251.7,1.78864317]
[1672973495912,14.09367651,1251.9,1251.8,3.69193777]
[1672973496128,17.30147651,1251.9,1251.8,3.69193777]
[1672973496331,17.30147651,1251.9,1251.7,2.98058094]
[1672973497393,3.2078,1251.8,1251.7,2.98058094]
[1672973500652,14.09367651,1251.9,1251.7,2.98058094]
[1672973500859,3.2078,1251.8,1251.7,2.98058094]
[1672973501288,14.09367651,1251.9,1251.7,2.98058094]
[1672973501486,3.2078,1251.8,1251.7,2.98058094]
[1672973501701,14.09367651,1251.9,1251.7,2.98058094]
[1672973501901,3.2078,1251.8,1251.7,2.98058094]
[1672973503590,3.2078,1251.8,1251.7,1.78864317]
[1672973503799,3.2078,1251.8,1251.7,2.98085855]
[1672973504419,14.09367651,1251.9,1251.7,2.98085855]
[1672973504633,3.2078,1251.8,1251.7,2.98085855]
[1672973505690,14.09367651,1251.9,1251.7,2.98085855]
[1672973505997,3.2078,1251.8,1251.7,2.98085855]
[1672973506404,18.25496283,1251.9,1251.7,2.98085855]
[1672973506734,3.2078,1251.8,1251.7,2.98085855]
[1672973507262,18.25496283,1251.9,1251.7,2.98085855]
[1672973507470,3.2078,1251.8,1251.7,2.98085855]
[1672973509680,3.2078,1251.8,1251.7,1.78864317]
[1672973510205,3.2078,1251.8,1251.7,2.98102148]
[1672973510939,3.2078,1251.8,1251.7,1.78864317]
[1672973511361,3.2078,1251.8,1251.7,2.98102643]
[1672973512091,18.25496283,1251.9,1251.7,2.98102643]
[1672973512309,3.2078,1251.8,1251.7,2.98102643]
[1672973514097,3.2078,1251.8,1251.7,1.78864317]
[1672973515874,14.09367651,1251.9,1251.7,1.78864317]
[1672973516086,3.2078,1251.8,1251.7,1.78864317]
[1672973516514,18.25496283,1251.9,1251.7,1.78864317]
[1672973516720,18.25496283,1251.9,1251.8,1.19243566]
[1672973516932,18.25496283,1251.9,1251.8,3.69243566]
[1672973517139,21.46276283,1251.9,1251.8,3.69243566]
[1672973517458,17.30147651,1251.9,1251.8,1.19243566]
[1672973517774,21.46276283,1251.9,1251.8,1.19243566]
[1672973518088,17.30147651,1251.9,1251.8,1.19243566]
[1672973518616,21.46276283,1251.9,1251.8,1.19243566]
[1672973519136,21.46276283,1251.9,1251.7,2.98107883]
[1672973519561,18.25496283,1251.9,1251.7,2.98107883]
[1672973520292,3.2078,1251.8,1251.7,1.78864317]
[1672973521455,14.09367651,1251.9,1251.7,1.78864317]
[1672973521669,3.2078,1251.8,1251.7,1.78864317]
[1672973522819,3.2078,1251.8,1251.7,2.98107598]
[1672973523768,18.25496283,1251.9,1251.7,2.98107598]
[1672973524396,3.2078,1251.8,1251.7,2.98107598]
[1672973524712,6.80347651,1251.8,1251.7,2.98107598]
[1672973524928,3.2078,1251.8,1251.7,2.98107598]
[1672973525448,3.2078,1251.8,1251.7,1.78864317]
[1672973526915,3.2078,1251.8,1251.7,2.98104508]
[1672973527550,3.2078,1251.8,1251.7,1.78864317]
[1672973527866,3.2078,1251.8,1251.7,2.98106764]
[1672973528280,18.25496283,1251.9,1251.7,2.98106764]
[1672973528496,3.2078,1251.8,1251.7,2.98106764]
[1672973528809,3.2078,1251.8,1251.7,1.78864317]
[1672973530807,14.09367651,1251.9,1251.7,1.78864317]
[1672973531020,3.2078,1251.8,1251.7,1.78864317]
[1672973531859,3.2078,1251.8,1251.7,4.18285116]
[1672973532814,14.09367651,1251.9,1251.7,4.18285116]
[1672973533023,17.30147651,1251.9,1251.8,1.19221316]
[1672973533231,17.30147651,1251.9,1251.8,3.69221316]
[1672973533969,17.30147651,1251.9,1251.8,1.19221316]
[1672973535122,14.09367651,1251.9,1251.8,1.19221316]
[1672973535439,17.30147651,1251.9,1251.8,1.19221316]
[1672973536387,14.09367651,1251.9,1251.8,1.19221316]
[1672973536804,17.30147651,1251.9,1251.8,1.19221316]
[1672973537335,14.09367651,1251.9,1251.8,1.19221316]
[1672973537547,17.30147651,1251.9,1251.8,1.19221316]
[1672973542166,14.09367651,1251.9,1251.8,1.19221316]
[1672973542484,17.30147651,1251.9,1251.8,1.19221316]
[1672973543426,17.30147651,1251.9,1251.7,2.98085633]
[1672973543751,21.46276283,1251.9,1251.7,2.98085633]
[1672973544911,21.46276283,1251.9,1251.7,1.19221316]
[1672973545120,3.59567651,1251.8,1251.7,1.19221316]
[1672973545433,6.80347651,1251.8,1251.7,1.19221316]
[1672973545749,3.59567651,1251.8,1251.7,1.19221316]
[1672973545955,6.80347651,1251.8,1251.7,1.19221316]
[1672973547010,3.59567651,1251.8,1251.7,1.19221316]
[1672973547323,6.80347651,1251.8,1251.7,1.19221316]
[1672973549013,6.80347651,1251.8,1251.7,2.98085633]
[1672973549324,3.2078,1251.8,1251.7,2.98085633]
[1672973549537,18.25496283,1251.9,1251.7,2.98085633]
[1672973550160,3.2078,1251.8,1251.7,2.98085633]
[1672973551424,18.25496283,1251.9,1251.7,2.98085633]
[1672973552162,3.2078,1251.8,1251.7,2.98085633]
[1672973553948,18.25496283,1251.9,1251.7,2.98085633]
[1672973554154,3.2078,1251.8,1251.7,2.98085633]
[1672973554572,18.25496283,1251.9,1251.7,2.98085633]
[1672973554788,3.2078,1251.8,1251.7,2.98085633]
[1672973556685,18.25496283,1251.9,1251.7,2.98085633]
[1672973556894,3.2078,1251.8,1251.7,2.98085633]
[1672973558367,3.2078,1251.8,1251.7,1.78864317]
[1672973559210,14.09367651,1251.9,1251.7,1.78864317]
[1672973559414,14.09367651,1251.9,1251.8,1.19252302]
[1672973559628,17.30147651,1251.9,1251.8,1.19252302]
[1672973560784,14.09367651,1251.9,1251.8,1.19252302]
[1672973561098,17.30147651,1251.9,1251.8,1.19252302]
[1672973561308,14.09367651,1251.9,1251.8,1.19252302]
[1672973561627,17.30147651,1251.9,1251.8,1.19252302]
[1672973562255,14.09367651,1251.9,1251.8,1.19252302]
[1672973562468,17.30147651,1251.9,1251.8,1.19252302]
[1672973562988,14.09367651,1251.9,1251.8,1.19252302]
[1672973563201,17.30147651,1251.9,1251.8,1.19252302]
[1672973563725,14.09367651,1251.9,1251.8,1.19252302]
[1672973563936,17.30147651,1251.9,1251.8,1.19252302]
[1672973564560,14.09367651,1251.9,1251.8,1.19252302]
[1672973564881,17.30147651,1251.9,1251.8,1.19252302]
[1672973565092,14.09367651,1251.9,1251.8,1.19252302]
[1672973565507,17.30147651,1251.9,1251.8,1.19252302]
[1672973565825,14.09367651,1251.9,1251.8,1.19252302]
[1672973566140,17.30147651,1251.9,1251.8,1.19252302]
[1672973566357,14.09367651,1251.9,1251.8,1.19252302]
[1672973567095,17.30147651,1251.9,1251.8,1.19252302]
[1672973571816,14.09367651,1251.9,1251.8,1.19252302]
[1672973572244,17.30147651,1251.9,1251.8,1.19252302]
[1672973573714,14.09367651,1251.9,1251.8,1.19252302]
[1672973573925,17.30147651,1251.9,1251.8,1.19252302]
[1672973575608,13.7058,1251.9,1251.8,1.78864317]
[1672973575921,10.498,1251.9,1251.8,4.28864317]
[1672973576129,13.7058,1251.9,1251.8,4.28864317]
[1672973576650,13.7058,1251.9,1251.8,2.5]
[1672973577176,17.30147651,1251.9,1251.8,2.5]
[1672973577384,14.09367651,1251.9,1251.8,2.5]
[1672973577595,17.30147651,1251.9,1251.8,2.5]
[1672973577806,17.30147651,1251.9,1251.7,1.78864317]
[1672973578647,14.09367651,1251.9,1251.7,1.78864317]
[1672973578863,3.2078,1251.8,1251.7,1.78864317]
[1672973581267,3.2078,1251.8,1251.6,6.68285116]
[1672973581482,3.2078,1251.8,1251.6,4.28864317]
[1672973581903,2.5,1251.7,1251.6,6.68285116]
[1672973582544,3.2078,1251.8,1251.6,4.89420799]
[1672973582754,3.2078,1251.8,1251.7,1.7890752]
[1672973584539,3.2078,1251.8,1251.6,6.68328319]
[1672973585173,3.2078,1251.8,1251.7,1.7890752]
[1672973585487,3.2078,1251.8,1251.6,4.89420799]
[1672973585488,14.09367651,1251.9,1251.6,6.68328319]
[1672973585686,14.09367651,1251.9,1251.7,1.7890752]
[1672973585897,3.2078,1251.8,1251.7,1.7890752]
[1672973588853,14.09367651,1251.9,1251.7,1.7890752]
[1672973589063,3.2078,1251.8,1251.7,1.7890752]
[1672973599359,14.09367651,1251.9,1251.7,1.7890752]
[1672973599887,3.2078,1251.8,1251.7,1.7890752]
[1672973601255,14.09367651,1251.9,1251.7,1.7890752]
[1672973601470,3.2078,1251.8,1251.7,1.7890752]
[1672973605043,14.09367651,1251.9,1251.7,1.7890752]
[1672973605258,3.2078,1251.8,1251.7,1.7890752]
[1672973605881,14.09367651,1251.9,1251.7,1.7890752]
[1672973606199,3.2078,1251.8,1251.7,1.7890752]
[1672973606722,14.09367651,1251.9,1251.7,1.7890752]
[1672973606929,3.2078,1251.8,1251.7,1.7890752]
[1672973607354,14.09367651,1251.9,1251.7,1.7890752]
[1672973607563,3.2078,1251.8,1251.7,1.7890752]
[1672973614607,14.09367651,1251.9,1251.7,1.7890752]
[1672973615129,3.2078,1251.8,1251.7,1.7890752]
[1672973615656,3.2078,1251.8,1251.7,4.18328319]
[1672973615867,14.09367651,1251.9,1251.7,4.18328319]
[1672973616081,3.2078,1251.8,1251.7,4.18328319]
[1672973616711,3.2078,1251.8,1251.7,1.7890752]
[1672973618914,3.2078,1251.8,1251.6,4.18328319]
[1672973619120,2.5,1251.7,1251.6,1.7890752]
[1672973619545,2.5,1251.7,1251.6,4.18328319]
[1672973619864,5.7078,1251.7,1251.6,4.18328319]
[1672973621232,2.5,1251.7,1251.6,4.18328319]
[1672973621433,5.7078,1251.7,1251.6,4.18328319]
[1672973623754,2.5,1251.7,1251.6,4.18328319]
[1672973623958,5.7078,1251.7,1251.6,4.18328319]
[1672973624692,2.5,1251.7,1251.6,4.18328319]
[1672973624901,5.7078,1251.7,1251.6,4.18328319]
[1672973627438,3.2078,1251.7,1251.6,4.18328319]
[1672973628806,14.09367651,1251.9,1251.6,4.18328319]
[1672973629113,3.2078,1251.7,1251.6,4.18328319]
[1672973629313,14.09367651,1251.9,1251.6,4.18328319]
[1672973629527,3.2078,1251.7,1251.6,4.18328319]
[1672973629734,14.09367651,1251.9,1251.6,4.18328319]
[1672973630158,3.2078,1251.7,1251.6,4.18328319]
[1672973631741,3.2078,1251.7,1251.6,2.39420799]
[1672973632375,14.09367651,1251.9,1251.6,2.39420799]
[1672973632586,3.2078,1251.8,1251.7,1.79180816]
[1672973632796,3.2078,1251.8,1251.7,4.29180816]
[1672973633002,3.2078,1251.8,1251.7,1.79180816]
[1672973634482,14.09367651,1251.9,1251.7,1.79180816]
[1672973634792,3.2078,1251.8,1251.7,1.79180816]
[1672973636688,14.09367651,1251.9,1251.7,1.79180816]
[1672973636893,3.2078,1251.8,1251.7,1.79180816]
[1672973637105,14.09367651,1251.9,1251.7,1.79180816]
[1672973637313,3.2078,1251.8,1251.7,1.79180816]
[1672973637742,3.2078,1251.8,1251.6,6.68601615]
[1672973637948,2.5,1251.7,1251.6,6.68601615]
[1672973638160,2.5,1251.7,1251.6,4.89420799]
[1672973639523,3.59567651,1251.9,1251.6,9.30821674]
[1672973639737,11.2098,1252.0,1251.7,6.80172209]
[1672973640056,3.2118,1252.0,1251.9,1.79109064]
[1672973640252,3.2118,1252.0,1251.9,4.29109064]
[1672973643619,0.004,1252.0,1251.9,4.29109064]
[1672973643834,0.004,1252.0,1251.9,9.51126226]
[1672973644149,0.004,1252.0,1251.9,10.12144972]
[1672973645197,0.004,1252.0,1251.9,12.50244856]
[1672973645408,0.004,1252.0,1251.9,9.50454776]
[1672973646249,13.582,1252.1,1252.0,2.5016298]
[1672973646467,2.5,1252.3,1252.0,4.28751153]
[1672973647097,2.5,1252.3,1252.0,2.5016298]
[1672973651092,5.7078,1252.3,1252.0,2.5016298]
[1672973651713,5.7078,1252.3,1252.0,4.28751153]
[1672973651933,5.7078,1252.3,1252.0,2.5016298]
[1672973654670,2.5,1252.3,1252.0,2.5016298]
[1672973654879,5.7078,1252.3,1252.0,2.5016298]
[1672973655404,5.7078,1252.3,1252.0,2.498927]
[1672973657715,2.5,1252.3,1252.0,2.498927]
[1672973657928,5.7078,1252.3,1252.0,2.498927]
[1672973661501,3.2078,1252.3,1252.0,2.498927]
[1672973663081,5.7078,1252.4,1252.0,5.706727]
[1672973671275,5.7078,1252.4,1252.0,7.49260873]
[1672973671486,3.2078,1252.4,1252.0,7.49260873]
[1672973671689,5.7078,1252.4,1252.0,7.49260873]
[1672973672327,5.7078,1252.4,1252.0,15.49060873]
[1672973673166,2.5,1252.4,1252.0,12.28280873]
[1672973673382,5.7078,1252.4,1252.0,15.49060873]
[1672973673695,5.7078,1252.4,1252.0,17.87160757]
[1672973673906,5.7078,1252.4,1252.0,15.49060873]
[1672973674950,3.2078,1252.4,1252.0,15.49060873]
[1672973675162,5.7078,1252.4,1252.1,1.78588173]
[1672973675367,5.7078,1252.4,1252.2,2.5]
[1672973676644,5.7098,1252.4,1252.2,2.5]
[1672973676844,3.2098,1252.4,1252.2,2.5]
[1672973677373,5.7098,1252.4,1252.2,2.5]
[1672973678007,2.502,1252.4,1252.2,2.5]
[1672973678212,5.7098,1252.4,1252.2,2.5]
[1672973679163,5.7098,1252.4,1252.2,4.28588173]
[1672973680421,3.2098,1252.4,1252.2,4.28588173]
[1672973681152,5.7098,1252.4,1252.2,4.28588173]
[1672973681374,2.502,1252.4,1252.2,4.28588173]
[1672973681574,5.7098,1252.4,1252.2,4.28588173]
[1672973683156,5.7098,1252.4,1252.2,1.78588173]
[1672973683365,17.30347651,1252.4,1252.1,1.78588173]
[1672973683577,3.2078,1252.2,1252.1,1.78588173]
[1672973683888,5.7078,1252.2,1252.1,1.78588173]
[1672973684940,3.2078,1252.2,1252.1,4.16688057]
[1672973685465,3.2078,1252.2,1252.1,1.78588173]
[1672973686095,3.2078,1252.2,1252.1,4.16688057]
[1672973686307,17.30347651,1252.4,1252.1,2.38099884]
[1672973686522,17.30347651,1252.4,1252.1,4.16961099]
[1672973686726,17.30347651,1252.4,1252.2,2.5]
[1672973687041,14.09567651,1252.4,1252.2,2.5]
[1672973687364,17.30347651,1252.4,1252.2,2.5]
[1672973689467,14.09567651,1252.4,1252.2,2.5]
[1672973689678,3.2078,1252.3,1252.2,2.5]
[1672973689989,14.09567651,1252.4,1252.1,4.16961099]
[1672973690195,2.5,1252.2,1252.1,1.78861215]
[1672973691355,10.498,1252.2,1252.1,1.78861215]
[1672973691566,10.498,1252.2,1252.0,1.79061215]
[1672973691777,3.2078,1252.1,1252.0,1.79061215]
[1672973694084,3.2078,1252.1,1252.0,0.002]
[1672973695654,3.2078,1252.1,1252.0,1.19467219]
[1672973696702,11.2058,1252.1,1252.0,0.002]
[1672973696920,14.80147651,1252.1,1252.0,0.002]
[1672973697341,11.2058,1252.1,1252.0,0.002]
[1672973697563,14.80147651,1252.1,1252.0,0.002]
[1672973699347,11.2058,1252.1,1252.0,0.002]
[1672973699772,2.5,1252.0,1251.8,1.19267219]
[1672973700087,3.2078,1251.9,1251.8,1.19267219]
[1672973700506,3.2078,1251.9,1251.8,2.98128434]
[1672973704187,5.7078,1252.0,1251.8,2.98128434]
[1672973704810,2.5,1252.0,1251.8,2.98128434]
[1672973705020,5.7078,1252.0,1251.8,2.98128434]
[1672973706187,3.2078,1252.0,1251.9,2.5]
[1672973706396,3.2078,1252.0,1251.9,3.69267219]
[1672973708930,11.2058,1252.1,1251.9,3.69267219]
[1672973709469,3.2078,1252.1,1251.9,3.69267219]
[1672973710411,10.498,1252.2,1251.9,3.69267219]
[1672973710626,3.2078,1252.1,1251.9,3.69267219]
[1672973710937,2.5,1252.0,1251.9,3.69267219]
[1672973714620,3.2078,1252.1,1251.9,3.69267219]
[1672973715036,2.5,1252.0,1251.9,3.69267219]
[1672973716917,2.5,1252.0,1251.9,1.19267219]
[1672973722269,5.7078,1252.0,1251.9,1.19267219]
[1672973723946,2.5,1252.0,1251.9,1.19267219]
[1672973724159,3.2078,1252.0,1251.9,1.19267219]
[1672973725419,3.2078,1252.0,1251.9,2.98128434]
[1672973725947,14.09367651,1252.2,1251.9,2.98128434]
[1672973726155,3.2078,1252.0,1251.9,2.98128434]
[1672973726993,10.498,1252.2,1251.9,2.98128434]
[1672973727203,3.2078,1252.1,1251.9,2.98128434]
[1672973727522,2.5,1252.0,1251.9,2.98128434]
[1672973729522,2.5,1252.0,1251.9,1.78861215]
[1672973731405,14.09367651,1252.2,1251.9,1.78861215]
[1672973731727,3.2078,1252.1,1252.0,3.69345785]
[1672973732563,3.2078,1252.1,1252.0,5.48162788]
[1672973732771,3.2078,1252.1,1252.0,4.28861215]
[1672973733194,3.2078,1252.1,1252.0,4.88099884]
[1672973733821,5.7078,1252.2,1252.0,4.88099884]
[1672973734141,5.7078,1252.2,1252.1,1.19293669]
[1672973734552,5.7078,1252.2,1252.1,2.98234173]
[1672973734978,3.2078,1252.2,1252.1,1.19293669]
[1672973735192,5.7078,1252.2,1252.1,2.98234173]
[1672973735824,3.2078,1252.2,1252.1,2.98234173]
[1672973738664,3.2078,1252.2,1252.1,1.19293669]
[1672973740660,6.09567651,1252.3,1252.1,1.19293669]
[1672973740862,3.2078,1252.2,1252.1,1.19293669]
[1672973741072,6.09567651,1252.3,1252.1,1.19293669]
[1672973741283,3.2078,1252.2,1252.1,1.19293669]
[1672973742974,3.2078,1252.2,1252.1,2.98234173]
[1672973744231,3.2078,1252.2,1252.1,1.19293669]
[1672973744443,3.2078,1252.2,1252.1,2.98234173]
[1672973744959,3.2078,1252.2,1252.1,1.19293669]
[1672973745910,6.09567651,1252.3,1252.1,1.19293669]
[1672973746121,3.2078,1252.2,1252.1,1.19293669]